bitfinex/quotes_ETHUSD_20250630
["timestamp","ask_amount","ask_price","bid_price","bid_amount"]
[1751243569723,0.2004,2512.8,2512.4,3.1841856]
[1751243569724,0.002,2512.8,2512.7,3.18382616]
[1751243570038,0.002,2512.8,2512.6,0.1984]
[1751243570241,0.002,2512.8,2512.7,3.18382616]
[1751243570540,0.002,2512.8,2512.7,3.84044756]
[1751243570921,0.002,2512.8,2512.7,5.14884756]
[1751243571127,0.002,2512.8,2512.7,5.89724756]
[1751243571640,0.002,2512.8,2512.7,5.34724756]
[1751243571841,0.002,2512.8,2512.7,2.1634214]
[1751243572355,0.002,2512.8,2512.7,5.34724756]
[1751243572643,0.002,2512.8,2512.7,15.89724756]
[1751243577430,0.002,2512.8,2512.7,22.13179756]
[1751243577740,0.002,2512.8,2512.7,21.60679756]
[1751243578224,0.002,2512.8,2512.7,24.37814756]
[1751243578559,0.002,2512.8,2512.7,18.84624756]
[1751243579335,0.002,2512.8,2512.7,35.27384756]
[1751243579539,0.002,2512.8,2512.7,34.36134756]
[1751243579734,0.002,2512.8,2512.7,41.27634756]
[1751243579940,0.002,2512.8,2512.7,25.62804756]
[1751243580439,0.002,2512.8,2512.7,41.75829756]
[1751243580949,0.002,2512.8,2512.7,25.62804756]
[1751243581446,0.002,2512.8,2512.7,28.29524756]
[1751243581643,0.002,2512.8,2512.7,15.89724756]
[1751243581855,0.002,2512.8,2512.7,24.75024756]
[1751243582181,0.002,2512.8,2512.7,6.63062616]
[1751243582475,0.002,2512.8,2512.7,13.54162616]
[1751243582773,0.002,2512.8,2512.7,6.63062616]
[1751243583078,0.002,2512.8,2512.7,5.32222616]
[1751243583250,0.002,2512.8,2512.7,2.1384]
[1751243583570,0.002,2512.8,2512.7,12.23222616]
[1751243583778,0.002,2512.8,2512.7,9.0484]
[1751243584434,0.002,2512.8,2512.7,12.23222616]
[1751243585856,0.002,2512.8,2512.7,14.76844229]
[1751243586475,0.002,2512.8,2512.7,12.23222616]
[1751243586835,0.002,2512.8,2512.7,0.1984]
[1751243587144,3.18577211,2512.8,2512.4,6.907]
[1751243587344,3.18405981,2512.6,2512.1,3.18558333]
[1751243587576,4.45435981,2512.6,2512.2,6.907]
[1751243588064,2.0343215,2512.6,2512.1,0.001]
[1751243588243,3.18418214,2512.5,2512.1,0.001]
[1751243588446,1.2703,2512.6,2512.2,6.906]
[1751243588652,4.45433578,2512.6,2512.2,6.906]
[1751243588857,3.18413969,2512.5,2512.2,6.906]
[1751243589065,4.45431841,2512.6,2512.2,6.906]
[1751243589269,2.03431745,2512.6,2512.2,10.09044126]
[1751243590581,0.002,2512.8,2512.2,6.906]
[1751243590776,0.002,2512.8,2512.4,1.3902]
[1751243591084,0.002,2512.8,2512.7,3.18382616]
[1751243592486,0.002,2512.8,2512.5,6.905]
[1751243593094,0.002,2512.8,2512.5,10.08906629]
[1751243594292,3.18578502,2512.8,2512.3,3.18426924]
[1751243594478,3.18399356,2512.6,2512.1,3.18556272]
[1751243594782,0.002,2512.8,2512.7,13.73382616]
[1751243594952,0.002,2512.8,2512.4,1.2928]
[1751243595150,0.002,2512.8,2512.7,3.18382616]
[1751243595481,0.002,2512.8,2512.7,14.74230878]
[1751243595683,0.002,2512.8,2512.7,16.03510878]
[1751243596387,0.002,2512.8,2512.7,26.00032678]
[1751243596957,0.002,2512.8,2512.7,26.19872678]
[1751243597465,0.002,2512.8,2512.7,32.39154778]
[1751243598370,0.002,2512.8,2512.7,32.91654778]
[1751243598989,0.002,2512.8,2512.7,39.81554778]
[1751243599486,0.002,2512.8,2512.7,41.10329478]
[1751243599988,0.2004,2513.9,2513.6,1.3603]
[1751243600189,0.2004,2513.9,2513.7,10.08050689]
[1751243600392,0.2004,2513.9,2513.7,10.08055379]
[1751243600559,1.5411,2513.9,2513.7,10.08055379]
[1751243600959,1.5411,2513.9,2513.7,6.898]
[1751243601180,2.01343426,2513.9,2513.5,10.0787815]
[1751243601691,1.5411,2513.9,2513.5,10.0787815]
[1751243601889,1.5411,2513.9,2513.5,6.896]
[1751243602191,1.5411,2513.9,2513.5,10.07880217]
[1751243602400,4.72342509,2513.9,2513.5,6.896]
[1751243602591,1.5411,2513.9,2513.5,10.07880718]
[1751243602791,5.19575254,2513.9,2513.5,6.896]
[1751243602992,1.81503429,2513.9,2513.5,6.896]
[1751243603295,1.3905,2513.6,2513.1,6.894]
[1751243603482,1.3905,2513.6,2512.8,3.18360305]
[1751243603686,0.1984,2513.2,2512.9,6.894]
[1751243603891,10.0,2513.7,2513.1,3.18325013]
[1751243604089,0.1984,2513.6,2513.2,3.18319274]
[1751243604397,0.1984,2513.6,2513.3,3.18302867]
[1751243605495,1.3905,2513.8,2513.4,3.18283222]
[1751243605680,1.3905,2513.8,2512.3,3.18421691]
[1751243605681,3.38124363,2513.5,2513.1,0.1984]
[1751243606002,0.1984,2513.3,2512.9,10.07544655]
[1751243606169,0.1984,2513.3,2513.0,3.18334669]
[1751243606368,0.1984,2513.3,2513.0,3.1834162]
[1751243606569,0.1984,2513.3,2512.8,0.1984]
[1751243606773,0.1984,2513.3,2512.8,10.27298214]
[1751243607203,0.1984,2513.3,2512.9,3.18356007]
[1751243608600,3.18328933,2513.2,2512.8,0.1984]
[1751243608900,3.18359066,2512.9,2512.6,0.1984]
[1751243609106,0.1984,2512.9,2512.5,6.89]
[1751243609396,0.1984,2512.9,2512.5,10.07401907]
[1751243609809,0.1984,2512.9,2512.6,3.18388767]
[1751243610101,0.1984,2512.9,2512.5,11.41968106]
[1751243610102,0.1984,2512.9,2512.7,3.18376769]
[1751243610275,0.1984,2513.1,2512.7,3.18376769]
[1751243611166,3.38173914,2513.1,2512.6,10.27131368]
[1751243611371,3.18346883,2513.0,2512.6,7.0874]
[1751243611903,3.97608519,2513.0,2512.5,10.07201464]
[1751243612199,0.1984,2512.9,2512.5,10.27041464]
[1751243612401,0.1984,2512.9,2512.5,7.0854]
[1751243612697,4.54488749,2512.8,2512.4,6.887]
[1751243613005,4.74328749,2512.8,2512.3,3.38272819]
[1751243613187,4.74328749,2512.8,2512.4,6.887]
[1751243613505,4.74328749,2512.8,2512.3,3.38272819]
[1751243613797,4.74328749,2512.8,2512.3,7.0854]
[1751243613798,3.18384408,2512.7,2512.3,7.0854]
[1751243613999,3.18384408,2512.7,2512.3,0.1984]
[1751243614201,4.54488083,2512.8,2512.2,6.886]
[1751243614392,4.54488083,2512.8,2512.2,10.07044932]
[1751243614393,0.1984,2512.6,2512.2,10.07044932]
[1751243615303,0.1984,2512.6,2512.5,0.002]
[1751243615980,3.38235287,2512.6,2512.5,0.002]
[1751243616171,4.78675287,2512.6,2512.5,0.002]
[1751243616373,14.78675287,2512.6,2512.5,0.002]
[1751243616571,17.81158415,2512.6,2512.5,0.002]
[1751243618125,18.36158415,2512.6,2512.5,0.002]
[1751243618418,48.73246418,2512.6,2512.5,0.002]
[1751243618978,3.18445983,2512.2,2512.1,0.001]
[1751243619176,21.28515363,2512.2,2512.1,0.001]
[1751243619384,22.23521668,2512.2,2512.1,0.001]
[1751243620708,32.78521668,2512.2,2512.1,0.001]
[1751243621283,63.1554635,2512.2,2512.1,0.001]
[1751243621791,24.08554943,2512.2,2512.1,0.001]
[1751243621990,55.03268984,2512.2,2512.1,0.001]
[1751243622305,55.03211158,2512.2,2512.1,0.001]
[1751243623012,25.03211158,2512.2,2512.1,0.001]
[1751243623201,23.71530581,2512.2,2512.1,0.001]
[1751243624105,16.81930581,2512.2,2512.1,0.001]
[1751243624310,23.70130581,2512.2,2512.1,0.001]
[1751243625207,13.70130581,2512.2,2512.1,0.001]
[1751243625615,23.70130581,2512.2,2512.1,0.001]
[1751243626707,23.69930581,2512.2,2512.1,0.001]
[1751243628719,23.69830581,2512.2,2512.1,0.001]
[1751243629634,14.90730581,2512.2,2512.1,0.001]
[1751243629843,1.4044,2512.2,2512.1,0.001]
[1751243629989,15.09627561,2512.4,2512.1,0.001]
[1751243630189,9.946,2512.6,2512.1,0.001]
[1751243630389,0.94483493,2512.5,2512.2,3.18441547]
[1751243630600,0.1984,2512.6,2512.4,3.18420513]
[1751243630919,1.14317771,2512.6,2512.4,3.18420513]
[1751243631121,2.09470009,2512.7,2512.4,3.18413993]
[1751243631321,2.29310009,2512.7,2512.4,3.18413993]
[1751243631835,2.29310009,2512.7,2512.3,4.01968794]
[1751243632037,3.23808789,2512.7,2512.3,4.01968794]
[1751243632542,2.29310009,2512.7,2512.3,4.01968794]
[1751243633241,2.29310009,2512.7,2512.4,3.71651676]
[1751243633904,2.29310009,2512.7,2512.4,0.53238879]
[1751243634109,2.29310009,2512.7,2512.5,3.1840746]
[1751243634330,2.09470009,2512.7,2512.5,3.18400702]
[1751243634628,11.9693516,2513.1,2512.5,3.18400702]
[1751243634629,0.1984,2512.9,2512.5,3.18400702]
[1751243635036,0.1984,2512.9,2512.6,3.18394748]
[1751243635209,0.1984,2512.9,2512.7,3.1837521]
[1751243635411,0.56831756,2513.0,2512.7,4.5879521]
[1751243635601,0.1984,2513.0,2512.8,3.18369215]
[1751243635801,0.1984,2513.0,2512.7,1.4042]
[1751243635802,0.1984,2513.0,2512.7,4.58800149]
[1751243636104,0.1984,2513.0,2512.8,3.18368307]
[1751243636715,0.1984,2513.0,2512.9,3.18357276]
[1751243637042,0.1984,2513.0,2512.8,4.05165842]
[1751243637429,0.1984,2513.0,2512.9,3.18357276]
[1751243637632,1.18640417,2513.2,2513.0,3.18339593]
[1751243637854,1.18640417,2513.2,2512.8,4.25004499]
[1751243638152,6.24076771,2513.3,2512.8,4.25004499]
[1751243638303,3.05769356,2513.3,2512.8,0.1984]
[1751243638626,0.1984,2513.1,2512.7,4.78636197]
[1751243639901,0.002,2513.0,2512.7,4.78636197]
[1751243640507,1.3982,2513.0,2512.4,1.3154]
[1751243640850,3.38242344,2512.6,2512.2,1.5138]
[1751243641054,3.1840835,2512.5,2512.1,0.001]
[1751243641203,0.1984,2512.4,2512.1,0.001]
[1751243641532,0.1984,2512.4,2512.1,3.18557909]
[1751243641932,0.1984,2512.4,2512.1,0.001]
[1751243642426,0.1984,2512.4,2512.2,3.1843781]
[1751243642828,0.1984,2512.4,2512.3,3.18433308]
[1751243643035,13.3102,2513.0,2512.3,0.63698607]
[1751243643203,0.1984,2512.8,2512.5,3.1840554]
[1751243643409,0.1984,2512.8,2512.5,3.1840796]
[1751243643606,0.1984,2512.8,2512.5,3.18398942]
[1751243644733,0.1984,2512.8,2512.7,3.18382616]
[1751243644963,0.002,2513.0,2512.6,3.38228614]
[1751243645640,0.002,2513.0,2512.7,3.18380807]
[1751243646507,0.002,2513.0,2512.3,0.1984]
[1751243646508,0.1984,2512.8,2512.3,0.1984]
[1751243646807,0.1984,2512.8,2512.5,3.18398559]
[1751243647401,0.1984,2512.8,2512.6,1.2733]
[1751243647802,0.1984,2512.8,2512.3,0.1984]
[1751243648008,3.18406694,2512.6,2512.3,0.1984]
[1751243648333,1.3866,2512.7,2512.3,3.38273278]
[1751243648534,4.57043108,2512.7,2512.3,0.1984]
[1751243649340,3.18397268,2512.6,2512.1,13.18553039]
[1751243649543,0.1984,2512.5,2512.2,3.18444355]
[1751243650217,0.1984,2512.5,2512.3,3.1843042]
[1751243650622,4.57543295,2512.9,2512.4,3.18420633]
[1751243650922,0.1984,2512.8,2512.4,3.18420633]
[1751243651435,0.002,2512.7,2512.5,3.18406841]
[1751243651645,0.002,2512.7,2512.4,3.1841542]
[1751243652240,0.002,2512.7,2512.5,3.18401245]
[1751243652418,0.002,2512.7,2512.3,1.6071]
[1751243652620,3.18588161,2512.7,2512.3,1.4087]
[1751243652947,3.18588161,2512.7,2512.2,0.1984]
[1751243652948,4.88686132,2512.6,2512.2,0.1984]
[1751243653154,3.3842935,2512.7,2512.2,3.38285888]
[1751243653338,0.2004,2512.7,2512.3,4.59291048]
[1751243653545,0.2004,2512.7,2512.3,4.59296507]
[1751243654155,3.38423428,2512.7,2512.3,1.4087]
[1751243654334,3.38433129,2512.7,2512.2,0.1984]
[1751243654537,0.33843313,2512.6,2512.2,0.1984]
[1751243654714,3.18412383,2512.5,2512.2,0.1984]
[1751243655041,3.1840812,2512.5,2512.2,0.1984]
[1751243655834,3.18401922,2512.6,2512.2,0.1984]
[1751243656338,0.2004,2512.7,2512.2,0.1984]
[1751243656659,0.002,2512.7,2512.5,3.18403292]
[1751243656841,0.002,2512.7,2512.6,3.18395287]
[1751243657150,0.002,2512.7,2512.5,3.38245312]
[1751243657453,0.002,2512.7,2512.5,0.1984]
[1751243658216,0.002,2512.7,2512.5,4.17680566]
[1751243659041,0.002,2512.7,2512.6,3.18395287]
[1751243659346,0.002,2512.7,2512.6,4.75875287]
[1751243659708,0.002,2512.7,2512.6,0.1984]
[1751243661138,0.002,2512.7,2512.4,11.3764]
[1751243661318,0.002,2512.7,2512.5,3.18406598]
[1751243661941,0.002,2512.7,2512.6,3.18395287]
[1751243662640,0.002,2512.7,2512.6,6.4753443]
[1751243663829,0.002,2512.7,2512.6,13.3253443]
[1751243666026,0.002,2512.7,2512.6,13.8753443]
[1751243666830,0.002,2512.7,2512.6,48.7032983]
[1751243667034,0.002,2512.7,2512.6,35.0851723]
[1751243667501,0.002,2513.0,2512.9,35.08197276]
[1751243667769,0.002,2513.0,2512.9,56.69946513]
[1751243668571,0.95058796,2513.7,2513.6,3.18268618]
[1751243668774,0.95058796,2513.8,2513.7,4.53095957]
[1751243669838,0.95058796,2513.8,2513.7,10.02755957]
[1751243670815,0.95058796,2513.8,2513.7,10.57755957]
[1751243670972,0.002,2513.9,2513.7,9.55962288]
[1751243671176,0.002,2513.9,2513.7,11.36605721]
[1751243671377,0.95258796,2513.9,2513.7,11.36605721]
[1751243671575,0.002,2513.9,2513.7,11.36605721]
[1751243671809,2.28788796,2513.9,2512.9,2.87349237]
[1751243671972,5.47028121,2513.9,2513.0,8.1858]
[1751243672173,2.28788796,2513.9,2513.2,13.18319274]
[1751243672404,1.18640417,2513.8,2513.5,3.18269985]
[1751243672608,0.95058796,2513.8,2513.6,10.02560275]
[1751243672816,0.95058796,2513.8,2513.7,3.18255957]
[1751243673027,0.002,2513.9,2513.8,3.18243297]
[1751243673487,0.002,2513.9,2513.7,3.18250863]
[1751243673820,0.002,2513.9,2513.8,3.18243297]
[1751243674389,0.002,2513.9,2513.8,5.05324007]
[1751243674587,0.002,2513.9,2513.8,5.86934007]
[1751243674822,0.002,2513.9,2513.8,11.38853297]
[1751243675413,0.002,2513.9,2513.8,8.2061]
[1751243675824,0.002,2513.9,2513.8,11.38853297]
[1751243676435,0.002,2513.9,2513.8,1.3661]
[1751243676619,0.002,2513.9,2513.8,6.84]
[1751243677209,0.002,2513.9,2513.3,4.47979601]
[1751243677210,0.47640823,2513.9,2513.3,4.47979601]
[1751243677440,0.2004,2513.9,2513.5,0.1984]
[1751243678759,0.002,2513.9,2513.7,0.1984]
[1751243679047,0.002,2513.9,2513.7,7.0354]
[1751243679625,0.002,2513.9,2513.7,10.21793159]
[1751243680150,0.002,2513.9,2513.7,10.21795595]
[1751243680323,0.002,2513.9,2513.8,5.80872856]
[1751243681038,0.002,2513.9,2513.8,3.38083297]
[1751243682140,0.002,2513.9,2513.8,0.1984]
[1751243682762,0.002,2513.9,2513.8,3.38083297]
[1751243683346,0.002,2513.9,2513.8,10.21383297]
[1751243684328,0.002,2513.9,2513.8,7.0314]
[1751243684964,0.002,2513.9,2513.8,7.0304]
[1751243685176,1.3259,2513.9,2513.8,6.832]
[1751243685783,2.11476284,2513.9,2513.5,0.1984]
[1751243685987,0.1984,2513.7,2513.6,6.832]
[1751243686168,3.38100957,2513.7,2513.4,6.831]
[1751243686344,0.1984,2513.7,2513.4,6.831]
[1751243686872,3.3809726,2513.7,2513.4,6.831]
[1751243687475,0.1984,2513.7,2513.4,6.831]
[1751243687871,0.1984,2513.7,2513.4,10.0139154]
[1751243688267,0.1984,2513.7,2513.5,3.18270017]
[1751243688983,0.1984,2513.7,2513.4,10.01390481]
[1751243691079,0.1984,2513.7,2513.5,3.18280853]
[1751243691276,0.1984,2513.7,2513.6,3.18268618]
[1751243691658,0.002,2513.9,2513.7,3.18246057]
[1751243691859,0.002,2513.9,2513.7,10.01046057]
[1751243692062,0.002,2513.9,2513.7,10.010508]
[1751243692476,0.002,2513.9,2513.8,3.18243297]
[1751243694076,0.002,2513.9,2513.8,4.78485585]
[1751243695084,0.002,2513.9,2513.8,4.98325585]
[1751243701135,0.002,2513.9,2513.8,15.53325585]
[1751243701393,0.002,2513.9,2513.8,16.93255585]
[1751243702168,0.002,2513.9,2513.8,31.63745585]
[1751243702392,0.002,2513.9,2513.8,40.48494885]
[1751243702797,0.001,2514.2,2513.8,40.48494885]
[1751243702968,0.001,2514.2,2514.1,47.40229603]
[1751243703161,0.001,2514.2,2514.1,54.41969603]
[1751243703383,0.001,2514.2,2514.1,44.32167821]
[1751243703589,0.001,2514.2,2514.1,41.26194321]
[1751243704263,0.001,2514.2,2514.1,25.51394321]
[1751243704490,0.001,2514.2,2514.1,30.6906009]
[1751243704796,0.001,2514.2,2514.1,19.6495109]
[1751243704997,0.001,2514.2,2514.1,28.3505109]
[1751243705374,0.001,2514.2,2514.1,25.3494109]
[1751243705979,0.001,2514.2,2514.1,29.4863109]
[1751243706774,0.001,2514.2,2514.1,25.3494109]
[1751243706978,0.001,2514.2,2514.1,25.3484109]
[1751243708087,0.001,2514.2,2514.1,25.3474109]
[1751243709187,0.001,2514.2,2514.1,16.6494109]
[1751243709387,0.001,2514.2,2514.1,23.3961109]
[1751243709799,0.001,2514.2,2514.1,23.9461109]
[1751243710500,0.001,2514.2,2514.1,11.5121109]
[1751243710669,0.001,2514.2,2514.1,10.19245321]
[1751243711065,0.001,2514.2,2512.5,1.3381]
[1751243711066,10.76564782,2514.2,2512.5,1.3381]
[1751243711294,1.2708,2513.4,2512.9,3.38189372]
[1751243711496,1.4692,2513.4,2513.1,3.18324079]
[1751243711704,0.1984,2513.5,2513.1,3.18324616]
[1751243711904,3.38122471,2513.5,2513.1,7.0094]
[1751243712195,0.1984,2513.5,2513.1,7.0094]
[1751243713487,1.2708,2513.6,2513.1,7.51214]
[1751243713801,1.2708,2513.6,2513.4,3.18292194]
[1751243714016,3.18239032,2513.9,2513.5,3.38113204]
[1751243714017,1.2708,2513.9,2513.5,3.38113204]
[1751243714180,1.2708,2513.9,2513.7,0.1984]
[1751243714700,4.45320306,2513.9,2513.5,0.1984]
[1751243714869,4.45320306,2513.9,2513.2,6.81]
[1751243714870,0.46516031,2513.8,2513.2,6.81]
[1751243715219,1.3548,2513.5,2513.3,0.1984]
[1751243718271,4.53762626,2513.5,2513.3,0.1984]
[1751243718487,1.3548,2513.5,2513.3,0.1984]
[1751243718708,4.53761696,2513.5,2513.3,0.1984]
[1751243718913,0.4537617,2513.4,2513.3,0.1984]
[1751243719099,4.53761696,2513.5,2513.3,0.1984]
[1751243719974,0.1984,2513.7,2513.3,0.1984]
[1751243720704,0.1984,2513.7,2513.4,3.18293073]
[1751243720920,1.298,2513.8,2513.5,3.18270533]
[1751243721087,1.4964,2514.0,2513.6,3.18266792]
[1751243721412,1.4964,2514.0,2513.4,3.18293073]
[1751243721413,3.27124793,2514.0,2513.7,0.1984]
[1751243721780,0.001,2514.2,2514.1,3.18205321]
[1751243722106,0.001,2514.2,2514.1,13.18205321]
[1751243723104,0.001,2514.2,2514.1,20.53805321]
[1751243723306,0.001,2514.2,2514.1,21.89825321]
[1751243723879,0.001,2514.2,2514.1,21.89725321]
[1751243724112,0.001,2514.2,2514.1,24.59229469]
[1751243728038,0.001,2514.2,2514.1,39.49363269]
[1751243728201,0.001,2514.2,2514.1,54.59229469]
[1751243729042,0.001,2514.2,2514.1,36.82968369]
[1751243729323,0.001,2514.2,2514.1,48.32828469]
[1751243730189,0.001,2514.2,2514.1,54.59229469]
[1751243731031,0.001,2514.9,2514.8,3.73116748]
[1751243731321,0.001,2514.9,2514.8,24.37681165]
[1751243731486,0.001,2514.9,2514.8,53.59883265]
[1751243731691,0.001,2514.9,2514.8,46.93405465]
[1751243731901,0.001,2514.9,2514.8,27.63021165]
[1751243732322,0.001,2514.9,2514.8,24.57521165]
[1751243732506,0.001,2514.9,2514.8,54.57521165]
[1751243733525,0.001,2514.9,2514.8,54.76933482]
[1751243735248,0.001,2515.4,2515.3,3.73053512]
[1751243735424,0.001,2515.7,2515.5,13.73026419]
[1751243735719,0.001,2515.7,2515.6,37.04576582]
[1751243736111,0.001,2515.7,2515.6,15.21395582]
[1751243736311,0.001,2515.7,2515.6,23.87895582]
[1751243737527,0.001,2515.7,2515.6,13.92855582]
[1751243737748,0.001,2515.7,2515.6,22.59255582]
[1751243738510,0.001,2515.7,2515.6,13.37855582]
[1751243738930,0.001,2515.7,2515.6,6.9904]
[1751243739471,0.001,2515.7,2515.6,10.17055582]
[1751243739819,0.001,2515.7,2515.6,16.9904]
[1751243741557,0.001,2515.7,2515.6,20.17055582]
[1751243741859,0.001,2515.7,2515.6,20.16855582]
[1751243742060,0.001,2515.7,2515.6,16.9884]
[1751243742552,0.001,2515.7,2515.6,20.16855582]
[1751243742753,0.001,2515.7,2515.6,16.9884]
[1751243744254,0.001,2515.7,2515.6,10.1984]
[1751243744470,0.001,2515.7,2515.6,16.9864]
[1751243745493,0.001,2515.7,2515.6,6.9864]
[1751243745758,1.2798,2515.5,2514.9,5.03899119]
[1751243745950,1.2798,2515.5,2515.1,3.37917259]
[1751243746149,4.46009598,2515.5,2515.2,6.787]
[1751243746334,0.4460096,2515.4,2514.9,1.858]
[1751243746540,3.1805924,2515.3,2515.0,6.787]
[1751243746748,3.1805924,2515.3,2514.9,12.0564]
[1751243747059,4.47256194,2515.2,2515.0,6.786]
[1751243747368,1.2919,2515.2,2515.1,6.786]
[1751243748758,1.2919,2515.2,2515.1,9.96678804]
[1751243748935,1.2919,2515.2,2515.1,6.786]
[1751243749572,1.2919,2515.2,2515.0,0.1984]
[1751243749737,1.2919,2515.2,2515.1,6.785]
[1751243749941,1.7589903,2515.2,2515.0,0.1984]
[1751243750139,4.47262613,2515.2,2515.1,6.785]
[1751243750540,3.18091971,2515.0,2514.7,0.1984]
[1751243750842,1.2937,2514.9,2514.8,6.785]
[1751243751892,1.2937,2514.9,2514.7,0.1984]
[1751243752045,1.2937,2514.9,2514.8,6.784]
[1751243752652,1.2937,2514.9,2514.7,0.1984]
[1751243752850,1.2937,2514.9,2514.7,6.784]
[1751243752851,3.18129334,2514.8,2514.7,6.784]
[1751243753037,4.56613211,2514.7,2514.5,6.784]
[1751243753263,0.1984,2514.5,2514.1,0.2004]
[1751243753459,0.1984,2514.5,2514.2,6.784]
[1751243753641,3.38006675,2514.5,2514.2,6.784]
[1751243753842,3.38006675,2514.5,2514.2,6.783]
[1751243754541,3.18167447,2514.4,2514.2,6.783]
[1751243755244,3.37999035,2514.5,2514.2,6.783]
[1751243755463,0.1984,2514.5,2514.2,6.783]
[1751243756274,3.37994915,2514.5,2514.2,6.783]
[1751243756571,3.37994915,2514.5,2514.1,0.2004]
[1751243756773,0.1984,2514.5,2514.2,6.782]
[1751243757675,0.1984,2514.5,2514.2,9.96384355]
[1751243757880,1.3848,2514.6,2514.3,3.1817182]
[1751243758044,1.5832,2514.6,2514.3,3.18173554]
[1751243758887,1.5832,2514.6,2514.2,11.43560125]
[1751243758888,1.5832,2514.6,2514.4,3.18166317]
[1751243759176,1.5832,2514.6,2514.5,6.782]
[1751243759542,1.2882,2514.9,2514.6,3.18135043]
[1751243759764,1.4866,2514.9,2514.5,9.96348475]
[1751243761176,1.859,2515.4,2514.6,3.1814205]
[1751243761366,0.1984,2515.1,2514.6,3.37977666]
[1751243761676,0.56844497,2515.1,2514.7,3.18129214]
[1751243762247,0.56844497,2515.1,2514.8,3.18115715]
[1751243762654,0.56844497,2515.1,2514.7,3.18123495]
[1751243762854,0.56844497,2515.1,2514.8,6.78]
[1751243763051,0.1984,2515.1,2514.8,6.78]
[1751243763381,4.21825732,2515.1,2514.8,6.78]
[1751243763550,3.84837609,2515.1,2514.8,6.78]
[1751243763947,0.36988714,2515.0,2514.8,6.78]
[1751243764272,3.84837609,2515.1,2514.8,6.78]
[1751243764475,0.1984,2515.1,2514.8,9.96115594]
[1751243764675,0.1984,2515.3,2515.0,3.18082199]
[1751243764978,0.1984,2515.3,2515.1,6.778]
[1751243764979,0.56821093,2515.3,2515.1,6.778]
[1751243765353,0.1984,2515.3,2515.2,3.18066157]
[1751243765553,0.56821093,2515.3,2515.2,3.18066157]
[1751243765875,0.1984,2515.3,2515.2,3.18066157]
[1751243766177,0.56821093,2515.3,2515.2,3.18066157]
[1751243766476,0.1984,2515.3,2515.1,9.95871733]
[1751243766685,0.56821093,2515.3,2515.1,9.95871733]
[1751243766872,0.1984,2515.3,2515.1,9.95871733]
[1751243767073,0.56821093,2515.3,2515.1,9.95871733]
[1751243767275,0.36981093,2515.2,2515.1,9.95871733]
[1751243767674,0.1984,2515.3,2515.1,6.778]
[1751243767879,0.56821093,2515.3,2515.1,6.778]
[1751243768180,0.56821093,2515.3,2515.1,6.776]
[1751243768181,0.36981093,2515.2,2515.1,6.776]
[1751243768788,3.37895019,2515.3,2515.1,6.776]
[1751243768989,3.37895019,2515.3,2515.0,6.776]
[1751243768990,3.18080596,2515.1,2515.0,6.776]
[1751243769282,3.37920596,2515.1,2515.0,6.776]
[1751243769483,3.37920596,2515.1,2514.9,6.775]
[1751243769981,1.2947,2515.2,2514.9,9.95595089]
[1751243770370,4.47537438,2515.2,2514.9,6.775]
[1751243770574,1.2947,2515.2,2514.9,6.775]
[1751243771087,1.2947,2515.2,2514.9,9.95602283]
[1751243771302,0.37051128,2515.1,2515.0,3.1809059]
[1751243771585,3.1811634,2514.9,2514.7,0.74241046]
[1751243771762,3.18110263,2514.9,2514.7,0.74241046]
[1751243772689,3.18116748,2514.8,2514.7,0.74241046]
[1751243773260,3.18116748,2514.8,2514.5,0.002]
[1751243773463,3.1811097,2514.9,2514.5,0.002]
[1751243773779,4.48517223,2515.0,2514.5,3.18348843]
[1751243774478,3.18106515,2514.9,2514.5,0.002]
[1751243774785,4.48517436,2515.0,2514.5,3.18354605]
[1751243775009,0.9492589,2515.3,2514.5,0.002]
[1751243775158,3.1814205,2514.6,2514.5,0.002]
[1751243775358,4.4225205,2514.6,2514.5,0.002]
[1751243775787,1.2411,2514.6,2514.5,0.002]
[1751243776177,1.284,2514.8,2514.5,0.002]
[1751243776581,4.46516898,2514.8,2514.5,0.002]
[1751243778205,3.18129432,2514.7,2514.5,0.002]
[1751243778405,4.46523045,2514.8,2514.5,0.002]
[1751243778812,0.37172741,2514.7,2514.5,0.002]
[1751243778982,0.37173182,2514.6,2514.5,0.002]
[1751243779181,0.37182686,2514.6,2514.5,0.002]
[1751243781594,3.37969599,2514.7,2514.5,0.002]
[1751243782212,3.1814205,2514.6,2514.5,0.002]
[1751243784910,3.37976442,2514.7,2514.5,0.002]
[1751243786504,0.1984,2514.7,2514.5,0.002]
[1751243786707,3.18071686,2515.2,2514.5,6.768]
[1751243786914,0.1984,2515.0,2514.7,3.1811863]
[1751243787122,0.1984,2515.0,2514.6,0.6768]
[1751243787123,3.18111482,2514.9,2514.6,0.6768]
[1751243787285,0.1984,2515.0,2514.5,0.2004]
[1751243787286,1.3072,2514.8,2514.5,0.2004]
[1751243787486,0.1984,2514.7,2514.5,0.002]
[1751243788312,3.37974128,2514.7,2514.5,0.002]
[1751243789427,3.1814205,2514.6,2514.5,0.002]
[1751243792924,3.94841329,2514.6,2514.5,0.002]
[1751243793136,5.56144109,2514.6,2514.5,0.002]
[1751243793431,15.56144109,2514.6,2514.5,0.002]
[1751243794126,16.51276494,2514.6,2514.5,0.002]
[1751243794422,26.00661276,2514.6,2514.5,0.002]
[1751243794805,26.29756591,2514.6,2514.5,0.002]
[1751243795013,27.4813558,2514.6,2514.5,0.002]
[1751243795189,26.29756591,2514.6,2514.5,0.002]
[1751243795522,28.0313558,2514.6,2514.5,0.002]
[1751243797606,56.84756591,2514.6,2514.5,0.002]
[1751243798105,48.94152419,2514.6,2514.5,0.002]
[1751243798293,17.35371809,2514.6,2514.5,0.002]